Workbook

Sheet 9-14, 23-28.01.2023
A1: Школа | B1: - | E1: Отд./корп | I1: День
A3: Прием пищи | B3: Раздел | C3: № рец. | D3: Блюдо | E3: Выход, г | F3: Цена | G3: Калорийность | H3: Белки | I3: Жиры | J3: Углеводы
A4: Завтрак | B4: гор.блюдо | C4: ТТК 2022 г | D4: Ёжики мясные с рисом в соусе томатном | E4: 100 | G4: 127.00 | H4: 7.06 | I4: 6.42 | J4: 10.23
B5: гор блюдо | C5: № 202/2015 | D5: Макаронные изделия отварные (масло растительное) | E5: 150 | G5: 212.00 | H5: 5.60 | I5: 5.06 | J5: 35.91
B6: гор.напиток | C6: ТТК 2021 г | D6: Напиток из замороженной черной смородины | E6: 200 | G6: 44.00 | H6: 0.10 | I6: 0.04 | J6: 10.71
A7: понедельник | B7: хлеб | D7: Хлеб ржано-пшеничный | E7: 15 | G7: 33.00 | H7: 0.75 | I7: 0.15 | J7: 6.75
D8: Хлеб пшеничный | E8: 15 | G8: 35.00 | H8: 1.14 | I8: 0.12 | J8: 7.38
B9: закуска | C9: № 15/2015 г | D9: Сыр | E9: 15 | G9: 53.00 | H9: 3.94 | I9: 3.99 | J9: 0.00
B10: печенье | D10: Печенье | E10: 15 | G10: 80.00 | H10: 1.36 | I10: 4.16 | J10: 9.16
A12: ИТОГО | E12: =E4+E5+E6+E7+E8+E9+E10 -> 510 | F12: 62.10 | G12: =G4+G5+G6+G7+G8+G9+G10 -> 584 | H12: 19.95 | I12: 19.94 | J12: 80.14
A13: Завтрак | B13: гор.блюдо | C13: ТТК 2021 | D13: Жаркое из птицы | E13: 200 | G13: 332.00 | H13: 16.19 | I13: 15.98 | J13: 30.91
A14: вторник | B14: гор.напиток | C14: ТТК 2021г | D14: Чай с сахаром | E14: 208 | G14: 32 | H14: 0.02 | J14: 7.98
B15: хлеб | D15: Хлеб ржано-пшеничный | E15: 25 | G15: 55.00 | H15: 1.25 | I15: 0.25 | J15: 11.25
B16: фрукт | C16: № 338/2015г | D16: Плоды свежие (яблоки) | E16: 100 | G16: 47.00 | H16: 0.40 | I16: 0.40 | J16: 9.80
B17: закуска | C17: № 47/2015 г | D17: Салат из квашенной капусты (без лука) | E17: 60 | G17: 51.00 | H17: 0.98 | I17: 3.05 | J17: 4.63
A18: ИТОГО | E18: =E13+E14+E15+E16+E17 -> 593 | F18: 62.10 | G18: =G13+G14+G15+G16+G17 -> 517.00 | H18: =H13+H14+H15+H16+H17 -> 18.84 | I18: 19.68 | J18: 64.57
A19: Завтрак | B19: гор.блюдо | C19: ТТК 2021 г | D19: Плов с говядиной | E19: 190 | G19: 341 | H19: 11.62 | I19: 14.59 | J19: 40.09
B20: гор.напиток | C20: 200 | D20: Компот из свежих плодов (яблоки) | E20: 200 | G20: 49.00 | H20: 0.08 | I20: 0.08 | J20: 11.94
A21: среда | B21: хлеб | D21: Хлеб ржано-пшеничный | E21: 20 | G21: 44.00 | H21: 1.00 | I21: 0.20 | J21: 9.00
B22: хлеб | D22: Хлеб пшеничный | E22: 15 | G22: 35.00 | H22: 1.14 | I22: 0.12 | J22: 7.38
B23: закуска | C23: № 45/2015 | D23: Салат из белокачанной капусты | E23: 60 | G23: 54.00 | H23: 0.93 | I23: 3.05 | J23: 5.64
D24: Печенье весовое | E24: 30 | G24: 48.00 | H24: 1.07 | I24: 1.14 | J24: 8.23
A25: ИТОГО | E25: 515 | F25: 62.10 | G25: =G19+G20+G21+G22+G23+G24 -> 571.00 | H25: =H19+H20+H21+H22+H23+H24 -> 15.84 | I25: 19.18 | J25: 82.28
A26: Завтрак | B26: гор.блюдо | C26: ТТК | D26: Гуляш из птицы | E26: 100 | G26: 128.00 | H26: 8.05 | I26: 9.27 | J26: 3.13
B27: гор.блюдо | C27: № 302/2015 г | D27: Каша гречневая рассыпчатая | E27: 150 | G27: 242.00 | H27: 6.62 | I27: 5.39 | J27: 41.87
B28: гор.напиток | C28: № 348/2015 г | D28: Компот из плодов сушеныхз (урюк) | E28: 200 | G28: 47.00 | H28: 1.00 | I28: 0.08 | J28: 10.56
B29: хлеб | D29: Хлеб ржано-пшеничный | E29: 20 | G29: 44.00 | H29: 1.00 | I29: 0.20 | J29: 9.00
B30: хлеб | D30: Хлеб пшеничный | E30: 15 | G30: 35.00 | H30: 1.14 | I30: 0.12 | J30: 7.38
A31: четверг | B31: закуска | C31: № 52/2015 г | D31: Свекла отварная (дольками) с маслом | E31: 60 | G31: 56.00 | H31: 0.85 | I31: 3.65 | J31: 5.02
B32: фрукты | C32: №338/2015 | D32: Плоды свежие (яблоки) | E32: 100 | G32: 47.00 | H32: 0.40 | I32: 0.40 | J32: 9.80
A34: ИТОГО | E34: 645 | F34: 62.10 | G34: =G26+G27+G28+G29+G30+G31+G32 -> 599.00 | H34: =H26+H27+H28+H29+H30+H31+H32 -> 19.06 | I34: 19.11 | J34: 86.76
A35: Завтрак | B35: гор.блюдо | C35: ТТК 2021 г | D35: Биточки рыбные, огурец соленый (доп.грнир) | E35: 90 | G35: 132 | H35: 9.5 | I35: 8.3 | J35: 4.8
B36: гор. блюдо | C36: № 312/2015 г | D36: Пюре кртофельное с маслом сливочным | E36: 155 | G36: 146 | H36: 3.28 | I36: 4.66 | J36: 22.03
B37: гор. блюдо | C37: Акт 2018 г | D37: Блинчики со сгущенным молоком | E37: 55 | G37: 114 | H37: 3.19 | I37: 2.52 | J37: 19.5
B38: гор.напиток | C38: № 648/2004 г | D38: Кисель из концентрата | E38: 200 | G38: 53 | H38: 0.00 | I38: 0.00 | J38: 13.10
A39: пятница | B39: хлеб | D39: Хлеб ржано-пшеничный | E39: 20 | G39: 44.00 | H39: 1.00 | I39: 0.20 | J39: 9.00
B40: хлеб | D40: Хлеб пшеничный | E40: 15 | G40: 35.00 | H40: 1.14 | I40: 0.12 | J40: 7.38
A42: ИТОГО | E42: 535 | F42: 62.10 | G42: =G35+G36+G37+G38+G39+G40 -> 524 | H42: =H35+H36+H37+H38+H39+H40 -> 18.11 | I42: 15.80 | J42: 75.81
A43: Завтрак | B43: гор.блюдо | C43: № 243/2015 г | D43: Сосиски отварные | E43: 100 | G43: 144 | H43: 9.40 | I43: 11.00 | J43: 1.80
B44: гор.блюдо | C44: № 202/2015 г | D44: Макаронные изделия отваренные | E44: 150 | G44: 212 | H44: 5.60 | I44: 5.06 | J44: 35.91
B45: гор.напиток | C45: ТТК 2021 г | D45: Чай с сахаром, лимоном | E45: 213 | G45: 34 | H45: 0.06 | I45: 0.01 | J45: 8.13
B46: хлеб | D46: Хлеб ржано-пшеничный | E46: 15 | G46: 33.00 | H46: 0.75 | I46: 0.15 | J46: 6.75
B47: хлеб | D47: Хлеб пшеничный | E47: 15 | G47: 35.00 | H47: 1.14 | I47: 0.12 | J47: 7.38
A48: Суббота | B48: печенье | C48: Акт 2019 | D48: Печенье сдобное "Вкусное" | E48: 30 | G48: 66.00 | H48: 1.35 | I48: 2.70 | J48: 9.00
A50: ИТОГО | E50: 523 | G50: =G43+G44+G45+G46+G47+G48 -> 524 | H50: =H43+H44+H45+H46+H47+H48 -> 18.30 | I50: 19.04 | J50: 68.97

Sheet 16-21.01, 30.01-04.02.2023
A1: Школа | B1: МБОУ "Школа №71" | E1: Отд./корп | I1: День | J1: 2023-01-30
A3: Прием пищи | B3: Раздел | C3: № рец. | D3: Блюдо | E3: Выход, г | F3: Цена | G3: Калорийность | H3: Белки | I3: Жиры | J3: Углеводы
A4: Завтрак | B4: гор.блюдо | C4: ТТК 2020 г | D4: Тефтели из говядины в соусе томатном | E4: 110 | G4: 117.00 | H4: 5.50 | I4: 6.83 | J4: 8.46
B5: гор блюдо | C5: №302/2015 г | D5: Каша гречневая рассыпчатая | E5: 150 | G5: 242.00 | H5: 6.62 | I5: 5.39 | J5: 41.87
B6: гор.напиток | C6: ТТК 2021 г | D6: Чай с сахаром | E6: 208 | G6: 32.00 | H6: 0.02 | I6: 0.00 | J6: 7.98
A7: понедельник | B7: хлеб | D7: Хлеб ржано-пшеничный | E7: 15 | G7: 33.00 | H7: 0.75 | I7: 0.15 | J7: 6.75
B8: хлеб | D8: Хлеб пшеничный | E8: 15 | G8: 35.00 | H8: 1.14 | I8: 0.12 | J8: 7.38
B9: закуска | C9: № 15/2015 г | D9: Сыр порциями | E9: 60 | G9: 53.00 | H9: 3.94 | I9: 3.99 | J9: 0.00
B10: печенье | D10: Печенье весовое | E10: 30 | G10: 48.00 | H10: 1.07 | I10: 1.14 | J10: 8.23
A12: ИТОГО | E12: 543 | F12: 62.10 | G12: =G4+G5+G6+G7+G9+G10+G8 -> 560.00 | H12: =H4+H5+H6+H7+H9+H10+H8 -> 19.04 | I12: =I4+I5+I6+I7+I9+I10+I8 -> 17.62 | J12: =J4+J5+J6+J7+J9+J10+J8 -> 80.67
